bitfinex-derivatives/quotes_SOLF0:USTF0_20240904
["timestamp","ask_amount","ask_price","bid_price","bid_amount"]
[1725436481304,3.8252,130.73,130.72,0.05498235]
[1725436493915,24.62734945,130.73,130.62,23.54]
[1725436494109,23.54,130.71,130.62,24.8888]
[1725436494308,23.54,130.71,130.63,3.8279]
[1725436494815,3.8271,130.67,130.63,3.8279]
[1725436495116,3.8271,130.67,130.66,0.05601147]
[1725436495316,3.8274,130.66,130.65,0.05182446]
[1725436496217,0.05827895,130.68,130.65,0.05182446]
[1725436496515,0.05827895,130.68,130.65,23.59182446]
[1725436498008,0.05827895,130.68,130.67,23.54]
[1725436500722,0.05827895,130.68,130.66,3.827]
[1725436501222,0.05827895,130.68,130.65,27.41932446]
[1725436502127,0.05827895,130.68,130.65,0.05182446]
[1725436502826,3.8272,130.66,130.65,0.05182446]
[1725436510137,3.8288,130.61,130.58,3.8294]
[1725436510443,3.8288,130.61,130.57,27.3697]
[1725436511040,3.8288,130.61,130.58,3.8295]
[1725436511239,3.88122209,130.61,130.58,3.8295]
[1725436511636,3.8291,130.6,130.56,2.7775]
[1725436512339,0.05242209,130.61,130.56,6.6075]
[1725436512537,0.05242209,130.61,130.56,2.7775]
[1725436513147,3.8295,130.59,130.56,2.7775]
[1725436513645,3.8295,130.59,130.55,1.3531]
[1725436513841,0.04905195,130.58,130.55,1.3531]
[1725436514044,0.04905195,130.58,130.55,5.1835]
[1725436515441,0.04905195,130.58,130.56,3.8301]
[1725436516148,0.04905195,130.58,130.57,27.3699]
[1725436517444,0.04905195,130.58,130.56,6.5527]
[1725436518347,0.04905195,130.58,130.57,27.3699]
[1725436518549,23.54,130.66,130.57,23.54]
[1725436518851,3.8289,130.61,130.57,27.3697]
[1725436519648,0.04961995,130.6,130.58,0.04966972]
[1725436520853,3.87861995,130.6,130.58,0.04966972]
[1725436521051,0.04961995,130.6,130.58,0.04966972]
[1725436521651,3.8293,130.59,130.58,0.04966972]
[1725436526451,0.04961995,130.6,130.58,0.04966972]
[1725436529356,3.8293,130.59,130.58,0.04966972]
[1725436530664,3.87871995,130.6,130.58,0.04966972]
[1725436531148,0.04961995,130.6,130.58,0.04966972]
[1725436531754,3.8293,130.59,130.58,0.04966972]
[1725436540673,23.54,130.59,130.46,105.86085826]
[1725436540972,23.54,130.57,130.5,3.8318]
[1725436541268,3.8309,130.54,130.5,3.8318]
[1725436541676,0.05648618,130.53,130.5,3.8318]
[1725436542370,0.05648618,130.53,130.52,27.3714]
[1725436542969,26.3608,130.62,130.52,23.54]
[1725436543272,3.8295,130.59,130.55,23.54]
[1725436543665,3.8295,130.59,130.55,27.3702]
[1725436544066,0.04888507,130.58,130.56,0.04996224]
[1725436545371,3.8299,130.57,130.56,0.04996224]
[1725436546074,0.04888507,130.58,130.56,0.04996224]
[1725436546475,3.8299,130.57,130.56,0.04996224]
[1725436552074,3.8312,130.53,130.49,1.4046]
[1725436552471,3.8312,130.53,130.49,5.2367]
[1725436552971,0.05001324,130.52,130.49,5.2367]
[1725436553173,3.88141324,130.52,130.48,28.7882]
[1725436553375,0.05001324,130.52,130.48,1.4158]
[1725436553783,3.88151324,130.52,130.48,5.2482]
[1725436554479,0.05001324,130.52,130.45,1.4123]
[1725436554870,3.8324,130.49,130.45,5.2455]
[1725436555067,0.05085937,130.48,130.45,5.2455]
[1725436555274,0.05085937,130.48,130.45,1.4123]
[1725436555582,3.88345937,130.48,130.45,1.4123]
[1725436557580,0.05085937,130.48,130.43,23.54]
[1725436557780,0.05085937,130.48,130.41,26.2502]
[1725436557980,3.8334,130.46,130.42,3.834]
[1725436558279,0.05266238,130.45,130.41,26.2502]
[1725436558586,0.05574355,130.44,130.41,26.2502]
[1725436559182,0.05574355,130.44,130.42,3.8341]
[1725436561575,0.05574355,130.44,130.43,3.834]
[1725436562191,0.05574355,130.44,130.41,26.2502]
[1725436562880,0.05574355,130.44,130.42,3.8341]
[1725436563680,0.05574355,130.44,130.37,1.4237]
[1725436563681,3.834,130.43,130.37,1.4237]
[1725436563878,258.2017,130.54,130.37,1.4237]
[1725436563879,0.05590268,130.41,130.39,23.54]
[1725436564081,0.05467598,130.41,130.39,23.54]
[1725436564576,0.05467598,130.41,130.4,3.8349]
[1725436565177,234.6617,130.54,130.4,48.416]
[1725436565380,27.36735998,130.53,130.44,23.54]
[1725436565584,26.2778,130.53,130.44,23.54]
[1725436565788,26.2778,130.53,130.46,3.8329]
[1725436565985,2.7378,130.53,130.46,23.54]
[1725436566187,0.05401497,130.51,130.48,3.88359814]
[1725436566386,0.05401497,130.51,130.48,23.59119814]
[1725436566781,0.05401497,130.51,130.48,27.42359814]
[1725436567187,0.05401497,130.51,130.48,23.59119814]
[1725436567588,0.05401497,130.51,130.48,0.05119814]
[1725436568093,0.05401497,130.51,130.48,3.88369814]
[1725436568281,0.05401497,130.51,130.48,0.05119814]
[1725436570385,3.88581497,130.51,130.48,0.05119814]
[1725436570786,3.8321,130.5,130.48,0.05119814]
[1725436570992,0.05401497,130.51,130.48,0.05119814]
[1725436571888,3.8322,130.49,130.48,0.05119814]
[1725436577788,3.8321,130.5,130.48,0.05119814]
[1725436579092,3.8319,130.5,130.48,0.05119814]
[1725436579694,0.05401497,130.51,130.48,0.05119814]
[1725436580798,0.05401497,130.51,130.48,3.88369814]
[1725436581591,0.05401497,130.51,130.49,3.8321]
[1725436582395,0.05401497,130.51,130.48,0.05119814]
[1725436584197,0.05401497,130.51,130.48,3.88349814]
[1725436584397,0.05401497,130.51,130.48,0.05119814]
[1725436584697,0.05401497,130.51,130.5,3.8319]
[1725436585796,0.05401497,130.51,130.49,3.8321]
[1725436586404,227.0,130.63,130.49,23.54]
[1725436586698,23.54,130.59,130.51,23.54]
[1725436587197,3.83,130.57,130.53,3.831]
[1725436587389,3.83,130.57,130.54,0.04891409]
[1725436587390,0.05737081,130.56,130.54,0.04891409]
[1725436587794,0.05737081,130.56,130.55,3.8305]
[1725436588098,0.05737081,130.56,130.54,0.04891409]
[1725436588694,0.05737081,130.56,130.54,3.87951409]
[1725436589192,3.8305,130.55,130.54,0.04891409]
[1725436589390,0.05737081,130.56,130.54,0.04891409]
[1725436589797,3.88777081,130.56,130.54,0.04891409]
[1725436590500,0.05737081,130.56,130.54,0.04891409]
[1725436591309,3.88767081,130.56,130.54,0.04891409]
[1725436592906,0.05737081,130.56,130.54,0.04891409]
[1725436593895,3.8305,130.55,130.54,0.04891409]
[1725436594298,0.05737081,130.56,130.49,5.2043]
[1725436594299,3.8313,130.53,130.49,5.2043]
[1725436594502,3.8313,130.53,130.49,3.8321]
[1725436594704,23.54,130.54,130.49,3.8321]
[1725436595098,3.8312,130.53,130.49,3.8321]
[1725436595302,23.54,130.54,130.47,3.8327]
[1725436595606,3.8318,130.51,130.5,0.05019045]
[1725436595813,23.59274646,130.52,130.49,0.0484558]
[1725436596104,23.59469938,130.52,130.49,0.05112986]
[1725436596313,27.42629938,130.52,130.49,0.05112986]
[1725436597306,3.8317,130.51,130.49,0.05112986]
[1725436597612,23.59469938,130.52,130.49,0.05112986]
[1725436597811,0.05469938,130.52,130.49,0.05112986]
[1725436598111,3.8318,130.51,130.49,0.05112986]
[1725436598912,0.05469938,130.52,130.49,0.05112986]
[1725436598913,3.88609938,130.52,130.49,0.05112986]
[1725436599105,0.05469938,130.52,130.49,0.05112986]
[1725436599300,23.59469938,130.52,130.49,0.05112986]
[1725436599504,24.99849938,130.52,130.49,0.05112986]
[1725436599707,3.8319,130.5,130.49,0.05112986]
[1725436600313,24.99849938,130.52,130.42,23.54]
[1725436600314,24.9438,130.52,130.42,23.54]
[1725436600811,3.8321,130.5,130.46,3.8331]
[1725436601117,24.9438,130.52,130.46,3.8331]
[1725436601319,3.88559443,130.5,130.46,3.8331]
[1725436601612,0.05339443,130.5,130.46,3.8331]
[1725436602319,3.8323,130.49,130.46,3.8331]
[1725436603017,3.8325,130.48,130.42,23.54]
[1725436603313,0.05538645,130.46,130.42,23.54]
[1725436603811,0.05538645,130.46,130.44,3.8335]
[1725436604020,0.05538645,130.46,130.41,23.54]
[1725436604414,0.05538645,130.46,130.39,4.1465]
[1725436604607,0.05538645,130.46,130.39,27.6865]
[1725436605315,0.05538645,130.46,130.41,3.8343]
[1725436605907,0.05538645,130.46,130.4,3.8346]
[1725436606420,3.8339,130.44,130.4,3.8346]
[1725436606607,0.05692072,130.43,130.4,3.8346]
[1725436606812,0.05692072,130.43,130.39,23.54]
[1725436607012,3.8344,130.42,130.39,23.54]
[1725436607214,0.05692072,130.43,130.39,27.3749]
[1725436607515,0.05692072,130.43,130.37,23.54]
[1725436607719,0.05874454,130.41,130.37,23.54]
[1725436608014,0.05874454,130.41,130.35,27.6902]
[1725436608514,0.05874454,130.41,130.36,3.8358]
[1725436608714,3.8352,130.39,130.33,23.54]
[1725436609020,0.05438677,130.37,130.33,23.54]
[1725436610913,0.05438677,130.37,130.32,23.54]
[1725436611119,0.05438677,130.37,130.34,3.8364]
[1725436611419,0.05438677,130.37,130.31,1.4033]
[1725436611621,0.05438677,130.37,130.31,24.9433]
[1725436611809,0.05438677,130.37,130.31,1.4033]
[1725436612016,0.05438677,130.37,130.28,2.6935]
[1725436612319,0.05742453,130.34,130.3,23.54]
[1725436612715,0.05742453,130.34,130.32,23.54]
[1725436613015,0.05742453,130.34,130.33,3.8369]
[1725436615914,1.4306,130.45,130.33,23.54]
[1725436616113,1.4306,130.45,130.34,2.6781]
[1725436616114,23.54,130.43,130.34,2.6781]
[1725436616321,23.54,130.43,130.37,3.8357]
[1725436616916,23.54,130.43,130.34,2.6781]
[1725436616917,0.05191053,130.41,130.39,0.05720227]
[1725436617327,3.8351,130.4,130.39,0.05720227]
[1725436618924,3.88661053,130.41,130.39,0.05720227]
[1725436620515,3.8349,130.4,130.39,0.05720227]
[1725436621123,3.88671053,130.41,130.39,0.05720227]
[1725436621328,0.05191053,130.41,130.39,0.05720227]
[1725436621716,3.8349,130.4,130.39,0.05720227]
[1725436622821,27.42661053,130.41,130.39,0.05720227]
[1725436623029,0.05191053,130.41,130.39,0.05720227]
[1725436623633,23.54,130.47,130.37,23.54]
[1725436623923,23.54,130.48,130.39,23.54]
[1725436624220,4.0766,130.51,130.4,2.6889]
[1725436624422,24.62978285,130.5,130.41,23.54]
[1725436624625,24.62978285,130.5,130.44,3.89248149]
[1725436624626,0.05041259,130.47,130.44,3.89248149]
[1725436624823,0.05041259,130.47,130.44,0.05888149]
[1725436625527,23.54,130.51,130.44,0.05888149]
[1725436625728,3.8319,130.51,130.47,3.8326]
[1725436626427,3.832,130.5,130.46,3.833]
[1725436626731,0.05219482,130.49,130.47,0.04923021]
[1725436627125,0.05219482,130.49,130.47,3.88203021]
[1725436627626,0.05219482,130.49,130.47,0.04923021]
[1725436628933,3.8325,130.48,130.47,0.04923021]
[1725436629231,0.05219482,130.49,130.47,0.04923021]
[1725436632231,3.88439482,130.49,130.47,0.04923021]
[1725436632437,0.05219482,130.49,130.47,0.04923021]
[1725436632732,3.88469482,130.49,130.47,0.04923021]
[1725436634533,0.05219482,130.49,130.47,0.04923021]
[1725436635336,0.05219482,130.49,130.47,3.88183021]
[1725436636034,0.05219482,130.49,130.48,3.8325]
[1725436636425,227.0,130.59,130.48,23.54]
[1725436636426,23.54,130.58,130.48,23.54]
[1725436636629,3.8305,130.55,130.48,23.54]
[1725436637031,3.8305,130.55,130.51,3.8315]
[1725436637534,0.05739142,130.54,130.52,0.0514769]
[1725436637936,3.88819142,130.54,130.52,0.0514769]
[1725436640137,3.8311,130.53,130.52,0.0514769]
[1725436643844,0.05739142,130.54,130.52,0.0514769]
[1725436644338,1.441,130.62,130.52,23.5914769]
[1725436644339,23.54,130.62,130.52,23.5914769]
[1725436644534,11.4769,130.72,130.55,23.54]
[1725436644535,23.54,130.64,130.55,23.54]
[1725436644734,1.08866709,130.63,130.55,23.54]
[1725436645539,3.8293,130.59,130.58,0.05458419]
[1725436646332,3.88356769,130.6,130.58,0.05458419]
[1725436647437,0.05426769,130.6,130.58,0.05458419]
[1725436647639,1.08842288,130.64,130.58,0.05458419]
[1725436647839,1.08842288,130.64,130.58,23.59458419]
[1725436648137,3.8281,130.64,130.59,2.8008]
[1725436648541,3.8281,130.64,130.6,3.8288]
[1725436648741,0.05273521,130.63,130.61,0.05686847]
[1725436649640,3.88093521,130.63,130.61,0.05686847]
[1725436651341,3.8284,130.62,130.61,0.05686847]
[1725436652345,0.05273521,130.63,130.61,23.59686847]
[1725436652943,0.05273521,130.63,130.62,3.8284]
[1725436653137,3.8271,130.67,130.61,23.59686847]
[1725436653335,3.8266,130.69,130.65,27.3673]
[1725436653540,23.54,130.73,130.65,23.54]
[1725436653749,1.08756663,130.72,130.65,23.54]
[1725436653941,24.9046,130.75,130.6,30.7655]
[1725436653942,29.4,130.7,130.6,30.7655]
[1725436654245,0.05655601,130.66,130.64,0.05113856]
[1725436654440,3.8275,130.65,130.64,0.05113856]
[1725436656248,29.4,130.66,130.57,3.8297]
[1725436656450,29.4,130.64,130.53,29.4]
[1725436656745,3.8289,130.61,130.56,3.83]
[1725436657449,0.05265994,130.6,130.57,0.05403699]
[1725436657948,3.88165994,130.6,130.57,0.05403699]
[1725436658342,0.05265994,130.6,130.57,0.05403699]
[1725436658854,0.05265994,130.6,130.57,3.88363699]
[1725436660249,0.05265994,130.6,130.58,3.8296]
[1725436660443,0.05265994,130.6,130.57,0.05403699]
[1725436660951,0.05265994,130.6,130.57,3.88373699]
[1725436662545,0.05265994,130.6,130.58,29.4]
[1725436663053,3.8279,130.64,130.61,3.8287]
[1725436663251,3.8279,130.64,130.58,29.4]
[1725436663453,231.1688,130.69,130.62,3.8281]
[1725436663653,4.1688,130.69,130.62,3.8281]
[1725436664150,0.05039636,130.67,130.64,0.05565123]
[1725436664354,0.05353941,130.67,130.64,0.05100349]
[1725436665450,0.05353941,130.67,130.64,3.87870349]
[1725436666356,0.05353941,130.67,130.64,0.05100349]
[1725436666957,3.8275,130.65,130.64,0.05100349]
[1725436671251,3.8285,130.62,130.58,3.8295]
[1725436672352,0.05001788,130.61,130.59,0.0506722]
[1725436674655,3.87871788,130.61,130.59,0.0506722]
[1725436676559,3.829,130.6,130.59,0.0506722]
[1725436678267,3.87891788,130.61,130.59,0.0506722]
[1725436680862,0.05001788,130.61,130.59,3.8799722]
[1725436681255,0.05001788,130.61,130.59,0.0506722]
[1725436682160,3.87891788,130.61,130.59,0.0506722]
[1725436684959,0.05001788,130.61,130.59,3.8799722]
[1725436685364,0.05001788,130.61,130.59,0.0506722]
[1725436685667,0.05001788,130.61,130.59,3.8797722]
[1725436686759,0.05001788,130.61,130.6,3.829]
[1725436687562,0.05001788,130.61,130.59,3.8797722]
[1725436689475,3.87881788,130.61,130.59,3.8797722]
[1725436690379,0.05001788,130.61,130.59,3.8797722]
[1725436690678,0.05001788,130.61,130.6,3.829]
[1725436691578,0.05001788,130.61,130.59,3.8798722]
[1725436693481,0.05001788,130.61,130.59,0.0506722]
[1725436694378,0.05001788,130.61,130.59,3.8797722]
[1725436696785,3.87871788,130.61,130.59,3.8797722]
[1725436697885,0.05001788,130.61,130.59,3.8797722]
[1725436700475,0.05001788,130.61,130.6,3.829]
[1725436700875,3.8277,130.65,130.62,3.8283]
[1725436701982,3.87680925,130.65,130.62,3.8852376]
[1725436702478,3.87680925,130.65,130.63,3.8281]
[1725436702673,0.04910925,130.65,130.62,0.0569376]
[1725436702881,0.04910925,130.65,130.64,3.8278]
[1725436704982,0.04910925,130.65,130.62,0.0569376]
[1725436705479,3.8281,130.63,130.62,0.0569376]
[1725436708683,3.8289,130.61,130.57,3.8297]
[1725436708879,24.9362,130.65,130.55,26.3148]
[1725436708880,23.53,130.63,130.55,26.3148]
[1725436709282,3.8292,130.6,130.55,26.3148]
[1725436709488,3.8292,130.6,130.56,3.83]
[1725436709682,0.05581029,130.59,130.57,0.05633024]
[1725436710784,3.88531029,130.59,130.57,0.05633024]
[1725436711491,3.8296,130.58,130.57,0.05633024]
[1725436712779,23.53,130.58,130.39,7.6699]
[1725436712978,23.53,130.55,130.46,23.53]
[1725436713389,3.8309,130.54,130.46,23.53]
[1725436713780,0.05504591,130.51,130.49,3.88286079]
[1725436714185,0.05504591,130.51,130.49,0.05076079]
[1725436716288,3.88694591,130.51,130.49,0.05076079]
[1725436716786,0.05504591,130.51,130.49,0.05076079]
[1725436716987,3.8319,130.5,130.49,0.05076079]
[1725436717382,3.88684591,130.51,130.49,0.05076079]
[1725436717695,0.05504591,130.51,130.49,0.05076079]
[1725436718395,0.05504591,130.51,130.46,20.58076079]
[1725436719491,0.05504591,130.51,130.47,0.05195522]
[1725436720090,3.88674591,130.51,130.48,3.8323]
[1725436720388,0.05504591,130.51,130.47,0.05195522]
[1725436721091,0.05504591,130.51,130.48,3.8324]
[1725436722098,0.05504591,130.51,130.47,0.05195522]
[1725436722293,0.05504591,130.51,130.48,23.53]
[1725436722699,0.05504591,130.51,130.49,3.832]
[1725436723792,3.88674591,130.51,130.48,3.8324]
[1725436726898,3.88674591,130.51,130.47,0.05195522]
[1725436726899,0.05504591,130.51,130.49,3.8322]
[1725436727799,3.88674591,130.51,130.48,3.8324]
[1725436730000,3.88674591,130.51,130.49,3.8322]
[1725436731899,3.8319,130.5,130.48,3.8324]
[1725436732104,23.58504591,130.51,130.47,0.05195522]
[1725436733400,3.8325,130.48,130.47,0.05195522]
[1725436737992,3.8331,130.46,130.43,3.8338]
[1725436738896,3.8335,130.45,130.41,24.9531]
[1725436739107,0.05063554,130.46,130.43,0.04875992]
[1725436739498,3.8336,130.45,130.43,0.04875992]
[1725436739797,0.05063554,130.46,130.43,0.04875992]
[1725436739999,23.58063554,130.46,130.43,0.04875992]
[1725436740595,0.05063554,130.46,130.43,0.04875992]
[1725436741907,3.8336,130.45,130.43,0.04875992]
[1725436743210,0.05063554,130.46,130.44,3.8337]
[1725436743405,0.05063554,130.46,130.43,0.04875992]
[1725436743603,0.05063554,130.46,130.43,3.88255992]
[1725436744805,3.88403554,130.46,130.43,3.88275992]
[1725436745206,0.05063554,130.46,130.43,0.04875992]
[1725436746109,0.05063554,130.46,130.43,3.88265992]
[1725436748215,3.88393554,130.46,130.43,0.04875992]
[1725436749011,3.88393554,130.46,130.43,3.88255992]
[1725436750409,3.88393554,130.46,130.43,0.04875992]
[1725436750611,0.05063554,130.46,130.43,0.04875992]
[1725436750806,9.47063554,130.46,130.43,0.04875992]
[1725436751014,9.42,130.44,130.43,0.04875992]
[1725436751214,9.42,130.44,130.37,9.42]
[1725436751409,9.42,130.42,130.37,9.42]
[1725436751711,9.42,130.42,130.38,3.8353]
[1725436751903,13.2545,130.42,130.38,3.8353]
[1725436752109,9.42,130.42,130.38,3.8353]
[1725436752315,0.0506742,130.41,130.39,0.05648044]
[1725436752918,3.8853742,130.41,130.39,0.05648044]
[1725436755721,3.8349,130.4,130.39,0.05648044]
[1725436755916,27.4049,130.4,130.39,0.05648044]
[1725436757219,3.8354,130.39,130.35,3.8362]
[1725436757716,23.57,130.4,130.31,4.1146]
[1725436757923,23.57,130.4,130.31,27.6846]
[1725436758121,23.57,130.4,130.34,0.05449195]
[1725436758122,0.05376777,130.37,130.34,0.05449195]
[1725436758813,0.05376777,130.37,130.34,3.89099195]
[1725436759013,0.05376777,130.37,130.34,0.05449195]
[1725436759411,3.8361,130.36,130.34,0.05449195]
[1725436759611,0.05376777,130.37,130.34,0.05449195]
[1725436762324,3.8362,130.36,130.34,0.05449195]
[1725436764023,3.88966777,130.37,130.34,3.89109195]
[1725436764219,0.05376777,130.37,130.34,3.89109195]
[1725436764818,0.05376777,130.37,130.34,0.05449195]
[1725436766315,3.88956777,130.37,130.34,0.05449195]
[1725436768326,3.8362,130.36,130.34,0.05449195]
[1725436768622,0.05376777,130.37,130.34,0.05449195]
[1725436769217,3.88966777,130.37,130.34,0.05449195]
[1725436769423,3.88966777,130.37,130.34,3.89099195]
[1725436769625,0.05376777,130.37,130.34,3.89099195]
[1725436770329,0.05376777,130.37,130.35,3.8363]
[1725436772229,3.88956777,130.37,130.34,3.89109195]
[1725436774030,13.32956777,130.37,130.34,3.89109195]
[1725436774830,13.32956777,130.37,130.34,0.05449195]
[1725436776324,13.32956777,130.37,130.34,3.89109195]
[1725436776631,13.32956777,130.37,130.34,0.05449195]
[1725436776632,0.05376777,130.37,130.34,0.05449195]
[1725436776826,0.05376777,130.37,130.35,3.8362]
[1725436781833,0.05376777,130.37,130.36,3.8361]
[1725436782039,0.05376777,130.37,130.34,0.05449195]
[1725436782547,0.05376777,130.37,130.35,3.8363]
[1725436782942,9.49376777,130.37,130.34,0.05449195]
[1725436784042,13.2761,130.36,130.34,0.05449195]
[1725436784251,9.44,130.36,130.34,0.05449195]
[1725436785343,3.8364,130.35,130.34,0.05449195]
[1725436789545,0.05376777,130.37,130.34,0.05449195]
[1725436789745,9.49376777,130.37,130.34,0.05449195]
[1725436789952,3.8362,130.36,130.34,0.05449195]
[1725436790148,9.44,130.36,130.34,0.05449195]
[1725436791943,9.44,130.35,130.34,0.05449195]
[1725436792457,13.2764,130.35,130.34,0.05449195]
[1725436799460,3.8364,130.35,130.34,0.05449195]
[1725436799655,3.8362,130.36,130.34,0.05449195]
[1725436801255,3.88966777,130.37,130.34,3.89109195]
[1725436803356,0.05376777,130.37,130.34,0.05449195]
[1725436804656,0.05376777,130.37,130.36,3.8361]
[1725436804954,1.4072,130.45,130.27,2.7839]
[1725436805148,29.61854321,130.48,130.41,3.8344]
[1725436805348,2.7622,130.48,130.41,3.8344]
[1725436805551,3.8337,130.44,130.41,3.8344]
[1725436805756,2.7622,130.48,130.42,3.8342]
[1725436805959,2.7622,130.48,130.44,0.04996826]
[1725436806166,0.04895549,130.47,130.45,0.05851332]
[1725436806461,0.05727612,130.47,130.33,2.7143]
[1725436806664,3.8354,130.39,130.35,3.8361]
[1725436807257,10.4276,130.48,130.37,3.8357]
[1725436807657,0.05634488,130.44,130.41,0.05548821]
[1725436807864,0.05634488,130.44,130.33,2.7143]
[1725436808064,10.4276,130.48,130.33,2.7143]
[1725436808264,3.8347,130.41,130.37,3.8356]
[1725436808458,1.09016817,130.47,130.33,2.7143]
[1725436808764,0.05049399,130.41,130.33,2.7143]
[1725436808962,2.7622,130.48,130.33,2.7143]
[1725436809358,3.8333,130.46,130.42,3.834]
[1725436809567,3.8333,130.46,130.33,2.7143]
[1725436809763,2.7622,130.48,130.34,7.6728]
[1725436809960,3.8331,130.47,130.43,3.8338]
[1725436810161,3.8331,130.47,130.44,0.05804933]
[1725436810364,0.04990847,130.46,130.44,0.05804933]
[1725436810557,0.04990847,130.46,130.44,3.89174933]
[1725436810761,3.88300847,130.46,130.44,0.05804933]
[1725436810958,0.04990847,130.46,130.44,3.89154933]
[1725436811161,0.04990847,130.46,130.44,0.05804933]
[1725436811560,0.04990847,130.46,130.45,3.8334]
[1725436812163,4.0859,130.57,130.45,2.7896]
[1725436812460,1.08914065,130.56,130.45,2.7896]
[1725436812666,1.08914065,130.56,130.44,3.8335]
[1725436812864,3.8326,130.48,130.37,2.7896]
[1725436813255,0.05873287,130.44,130.43,3.834]
[1725436813454,0.05849316,130.45,130.42,0.05391646]
[1725436813657,0.04884518,130.45,130.42,0.05403926]
[1725436813862,0.04884518,130.45,130.44,3.8337]
[1725436814563,1.08932448,130.54,130.44,3.8337]
[1725436814860,1.08932448,130.54,130.43,5.1537]
[1725436815062,1.08932448,130.54,130.37,1.346]
[1725436815270,1.08932448,130.54,130.37,2.6657]
[1725436815570,3.8342,130.43,130.37,2.6657]
[1725436815765,0.04945794,130.41,130.39,0.05200155]
[1725436815966,0.04945794,130.41,130.4,3.8349]
[1725436816869,227.0,130.51,130.43,3.8339]
[1725436817064,3.8329,130.47,130.43,3.8339]
[1725436817263,2.6314,130.5,130.37,2.6657]
[1725436817979,66.45986771,130.56,130.46,3.833]
[1725436818166,3.8316,130.51,130.5,0.05644113]
[1725436818375,0.05110251,130.52,130.49,0.05572294]
[1725436818572,0.05179314,130.52,130.49,0.05739377]
[1725436819062,0.05179314,130.52,130.49,3.88949377]
[1725436819265,3.88319314,130.52,130.49,0.05739377]
[1725436820471,0.05179314,130.52,130.49,0.05739377]
[1725436821170,3.8317,130.51,130.49,0.05739377]
[1725436821569,0.05179314,130.52,130.49,0.05739377]
[1725436821771,3.8316,130.51,130.49,0.05739377]
[1725436822064,0.05179314,130.52,130.49,0.05739377]
[1725436822269,0.05179314,130.52,130.49,3.88939377]
[1725436822668,0.05179314,130.52,130.49,0.05739377]
[1725436822980,0.05179314,130.52,130.49,3.88939377]
[1725436823571,0.05179314,130.52,130.5,3.8319]
[1725436823771,0.05179314,130.52,130.49,0.05739377]
[1725436825575,0.05179314,130.52,130.51,3.8316]
[1725436826280,1.4098,130.58,130.52,3.8312]
[1725436826784,3.8304,130.56,130.52,3.8312]
[1725436827272,0.05150567,130.55,130.53,3.88493446]
[1725436827578,0.0523723,130.55,130.53,3.88051251]
[1725436828471,0.0523723,130.55,130.54,3.8308]
[1725436828782,108.9898428,130.62,130.45,7.6664]
[1725436829078,3.8295,130.59,130.44,2.6401]
[1725436829278,108.9898428,130.62,130.44,2.6401]
[1725436829484,3.831,130.54,130.5,3.8317]
[1725436829780,3.831,130.54,130.51,0.05594309]
[1725436830078,0.05828728,130.53,130.51,3.88754309]
[1725436830484,3.88938728,130.53,130.51,0.05594309]
[1725436830786,0.05828728,130.53,130.51,0.05594309]
[1725436831280,3.8314,130.52,130.51,0.05594309]
[1725436832069,3.88938728,130.53,130.51,0.05594309]
[1725436832475,3.8314,130.52,130.51,0.05594309]
[1725436832670,2.8187,130.56,130.38,81.038335]
[1725436832885,1.3229,130.51,130.39,3.9699]
[1725436833081,3.8333,130.46,130.39,3.9699]
[1725436833274,1.3896,130.5,130.39,3.9699]
[1725436833584,1.3896,130.5,130.46,3.8329]
[1725436833885,0.0527734,130.49,130.47,0.05615642]
[1725436834073,0.05397753,130.49,130.47,0.049613]
[1725436835290,3.8325,130.48,130.47,0.049613]
[1725436837281,0.05397753,130.49,130.47,0.049613]
[1725436837790,3.88627753,130.49,130.47,0.049613]
[1725436841093,0.05397753,130.49,130.47,0.049613]
[1725436842893,3.8325,130.48,130.47,0.049613]
[1725436843586,3.88627753,130.49,130.47,0.049613]
[1725436844590,0.05397753,130.49,130.47,3.882413]
[1725436845296,0.05397753,130.49,130.47,0.049613]
[1725436845693,3.88617753,130.49,130.47,0.049613]
[1725436846993,3.8325,130.48,130.47,0.049613]
[1725436847592,3.88627753,130.49,130.47,0.049613]
[1725436848292,0.05397753,130.49,130.47,0.049613]
[1725436848696,3.8325,130.48,130.47,0.049613]
[1725436848895,0.05397753,130.49,130.39,3.9699]
[1725436849097,1.4374,130.48,130.39,3.9699]